bitfinex/quotes_BTCUSD_20250124
["timestamp","ask_amount","ask_price","bid_price","bid_amount"]
[1737730067304,0.81971585,105870.0,105860.0,0.0001423]
[1737730067507,0.291709,105850.0,105840.0,0.08140565]
[1737730067726,0.65701897,105850.0,105840.0,0.08140565]
[1737730068734,0.65716662,105850.0,105840.0,0.08140565]
[1737730068940,0.63716662,105850.0,105840.0,0.08140565]
[1737730069519,0.141736,105830.0,105820.0,0.0001424]
[1737730069744,0.48763112,105830.0,105820.0,0.0001424]
[1737730070163,0.23908329,105830.0,105820.0,0.0001424]
[1737730070363,0.48763112,105830.0,105820.0,0.0001424]
[1737730070976,0.63763112,105830.0,105820.0,0.0001424]
[1737730071744,0.48763112,105830.0,105820.0,0.0001424]
[1737730072349,0.57937448,105850.0,105830.0,0.141728]
[1737730072552,0.09734729,105840.0,105830.0,0.330695]
[1737730072939,0.09734729,105840.0,105830.0,0.188967]
[1737730072940,0.23907029,105840.0,105830.0,0.188967]
[1737730073144,0.09734729,105840.0,105830.0,0.188967]
[1737730073345,0.09734729,105840.0,105830.0,0.141736]
[1737730073555,0.67659012,105840.0,105820.0,0.34087317]
[1737730073939,0.48762312,105840.0,105820.0,0.52987217]
[1737730074397,0.48762312,105840.0,105820.0,0.34087317]
[1737730074655,0.67659012,105840.0,105820.0,0.15188817]
[1737730074976,0.67659012,105840.0,105820.0,0.34088717]
[1737730075102,0.48762512,105840.0,105820.0,0.52988617]
[1737730075290,0.34589512,105840.0,105830.0,0.141736]
[1737730075493,0.48761912,105840.0,105820.0,0.52987617]
[1737730075740,0.34589512,105840.0,105820.0,0.52987617]
[1737730075961,0.34589512,105840.0,105830.0,0.141736]
[1737730076185,0.34589512,105840.0,105820.0,0.52986717]
[1737730076186,0.48761912,105840.0,105820.0,0.52986717]
[1737730076603,0.48761912,105840.0,105820.0,0.34087717]
[1737730077094,0.48761912,105840.0,105820.0,0.52986817]
[1737730077557,0.48761812,105840.0,105820.0,0.52986817]
[1737730077924,0.67658212,105840.0,105820.0,0.52986817]
[1737730078129,0.34589512,105840.0,105820.0,0.52986817]
[1737730078447,0.34589512,105840.0,105820.0,0.34087617]
[1737730078681,0.34589512,105840.0,105830.0,0.141736]
[1737730078868,0.34589512,105840.0,105820.0,0.52986617]
[1737730079063,0.34589512,105840.0,105830.0,0.141736]
[1737730079448,0.00014765,105850.0,105840.0,0.15172277]
[1737730079876,0.23920394,105850.0,105830.0,0.34070577]
[1737730080072,0.42815094,105850.0,105830.0,0.34070577]
[1737730080365,0.09749494,105850.0,105830.0,0.52967877]
[1737730080566,0.09749494,105850.0,105840.0,0.15172277]
[1737730080770,0.00014765,105850.0,105840.0,0.15172277]
[1737730080963,0.00014765,105850.0,105840.0,0.97065318]
[1737730081164,0.00014765,105850.0,105840.0,1.21800047]
[1737730081425,0.00014765,105850.0,105840.0,1.34200047]
[1737730081639,0.00029821,105890.0,105880.0,0.15166877]
[1737730081848,0.00044602,105890.0,105880.0,0.15166877]
[1737730082269,0.00044602,105890.0,105880.0,0.97154359]
[1737730082474,0.00044602,105890.0,105880.0,0.97059918]
[1737730082679,0.00044602,105890.0,105880.0,0.15166877]
[1737730083510,0.00044602,105890.0,105880.0,1.19069084]
[1737730083657,0.00044602,105890.0,105880.0,1.21274647]
[1737730083864,0.00044602,105890.0,105880.0,1.36274647]
[1737730084064,0.00044602,105890.0,105880.0,1.3527467]
[1737730084265,0.00044602,105890.0,105880.0,1.36274647]
[1737730084468,0.00044602,105890.0,105880.0,1.3527467]
[1737730084672,0.00044602,105890.0,105880.0,1.36274647]
[1737730085477,0.00044602,105890.0,105880.0,1.09239918]
[1737730085824,0.00044602,105890.0,105880.0,1.21274647]
[1737730086637,0.00044602,105890.0,105880.0,1.36274647]
[1737730086843,0.33032,105960.0,105940.0,0.330363]
[1737730087027,0.23891429,105960.0,105940.0,0.141588]
[1737730087234,0.141576,105950.0,105940.0,0.00999977]
[1737730087477,0.09734729,105950.0,105940.0,0.15158877]
[1737730087893,0.14172187,105960.0,105950.0,0.00999977]
[1737730088100,0.00014787,105960.0,105950.0,0.15157577]
[1737730088305,0.00014787,105960.0,105950.0,1.16580618]
[1737730088507,0.00014787,105960.0,105950.0,1.36115347]
[1737730088715,0.00014787,105960.0,105950.0,1.38415347]
[1737730089128,0.00014787,105960.0,105950.0,1.36415347]
[1737730089340,0.00014787,105960.0,105950.0,1.38415347]
[1737730089544,0.00014787,105960.0,105950.0,1.3541537]
[1737730089752,0.00044608,105960.0,105950.0,1.34115347]
[1737730089961,0.00044608,105960.0,105950.0,1.19115347]
[1737730090165,0.00044608,105960.0,105950.0,1.36415347]
[1737730090370,0.00044608,105960.0,105950.0,1.38004818]
[1737730090573,0.00044608,105960.0,105950.0,1.36415347]
[1737730091798,4.292e-05,106010.0,106000.0,0.141509]
[1737730092009,4.292e-05,106010.0,105990.0,0.52888477]
[1737730092010,0.23937902,106010.0,105990.0,0.52888477]
[1737730092211,0.42804202,106010.0,105990.0,0.52888477]
[1737730092626,0.42804202,106010.0,105990.0,0.34019577]
[1737730092829,0.09734729,106000.0,105980.0,0.38742177]
[1737730093033,0.09734729,106000.0,105990.0,0.141522]
[1737730093210,0.34589512,106000.0,105990.0,0.141522]
[1737730093589,0.34589512,106000.0,105970.0,0.19872477]
[1737730093795,0.24854783,105980.0,105970.0,0.19872177]
[1737730094979,0.09734729,106000.0,105990.0,0.141522]
[1737730095287,0.141549,105970.0,105950.0,0.141571]
[1737730095502,0.09734729,105970.0,105950.0,0.188753]
[1737730095710,0.141524,105990.0,105970.0,0.33026]
[1737730095924,0.33021492,106010.0,105990.0,0.141519]
[1737730096124,0.09734729,106000.0,105990.0,0.188696]
[1737730096326,0.09734729,106000.0,105980.0,0.377403]
[1737730096498,0.09734729,106000.0,105990.0,0.141522]
[1737730096729,0.2393498,106000.0,105980.0,0.518928]
[1737730096940,0.2393498,106000.0,105980.0,0.330225]
[1737730097129,0.2393498,106000.0,105980.0,0.518938]
[1737730097330,0.2393498,106000.0,105980.0,0.330225]
[1737730097534,0.2393498,106000.0,105980.0,0.518929]
[1737730098099,0.0978398,106000.0,105990.0,0.141522]
[1737730098303,0.00049251,106000.0,105990.0,0.141522]
[1737730098656,0.00049251,106000.0,105990.0,0.26281268]
[1737730098858,0.00049251,106000.0,105990.0,0.141522]
[1737730100373,0.00049251,106000.0,105990.0,1.08174315]
[1737730100546,0.00049251,106000.0,105990.0,1.0807997]
[1737730100948,0.00049251,106000.0,105990.0,0.96045241]
[1737730101350,0.00079051,106000.0,105990.0,0.96045241]
[1737730101576,0.00079051,106000.0,105990.0,1.0807997]
[1737730102064,0.00079051,106000.0,105990.0,0.96045241]
[1737730102276,0.00079051,106000.0,105990.0,1.0807997]
[1737730103216,0.00079051,106000.0,105990.0,1.3511997]
[1737730103420,4.3e-07,106010.0,106000.0,0.173]
[1737730103596,0.00029862,106020.0,106010.0,0.164496]
[1737730103780,0.00029862,106020.0,106010.0,1.14431531]
[1737730103982,0.00029862,106020.0,106010.0,1.14231531]
[1737730104489,6.2e-07,106020.0,106010.0,1.15231531]
[1737730105247,6.2e-07,106020.0,106010.0,1.32231531]
[1737730105452,6.2e-07,106020.0,106010.0,1.31231531]
[1737730105812,6.2e-07,106020.0,106010.0,1.26696018]
[1737730106046,6.2e-07,106020.0,106010.0,1.29608631]
[1737730106245,6.2e-07,106020.0,106010.0,1.42608631]
[1737730106649,0.06845329,106090.0,106070.0,0.188542]
[1737730106851,0.09734729,106080.0,106070.0,0.188542]
[1737730107262,0.09734729,106080.0,106050.0,0.02964679]
[1737730107263,0.61584729,106080.0,106050.0,0.21822679]
[1737730107461,0.141421,106070.0,106050.0,0.330019]
[1737730107662,0.23877729,106060.0,106040.0,0.141445]
[1737730107862,0.141403,106080.0,106060.0,0.141425]
[1737730108146,0.141403,106080.0,106070.0,0.141416]
[1737730108147,0.09734729,106080.0,106070.0,0.141416]
[1737730108346,0.53805804,106090.0,106080.0,0.141402]
[1737730108347,0.01960104,106090.0,106080.0,0.141402]
[1737730108562,0.00039163,106090.0,106080.0,0.141402]
[1737730109117,0.00039163,106090.0,106070.0,0.39167143]
[1737730109118,0.28625792,106090.0,106070.0,0.39167143]
[1737730109306,0.61619492,106090.0,106060.0,1.00748941]
[1737730109610,0.42729229,106080.0,106050.0,0.43887443]
[1737730109868,0.141417,106070.0,106050.0,0.39172543]
[1737730110089,0.09734729,106070.0,106060.0,0.141429]
[1737730110289,0.33031863,106090.0,106070.0,0.141415]
[1737730110495,0.09734729,106080.0,106070.0,0.188554]
[1737730110700,0.09734729,106080.0,106060.0,1.21063084]
[1737730110906,0.42728729,106080.0,106060.0,0.39170043]
[1737730111109,0.42728729,106080.0,106060.0,0.141429]
[1737730111316,0.47443229,106080.0,106050.0,0.518592]
[1737730111487,0.61584429,106080.0,106050.0,0.518594]
[1737730111693,0.28588529,106080.0,106050.0,0.36207864]
[1737730111860,0.141419,106070.0,106050.0,0.33002]
[1737730112053,0.42732129,106070.0,106050.0,0.33002]
[1737730112297,0.23876629,106070.0,106050.0,0.38697477]
[1737730112476,0.20812182,106090.0,106060.0,0.141421]
[1737730112656,0.141416,106070.0,106050.0,0.57554677]
[1737730112861,0.141442,106050.0,106020.0,0.81893041]
[1737730113065,0.42738829,106050.0,106020.0,0.377273]
[1737730113263,0.0786,106060.0,106050.0,0.141442]
[1737730113519,0.17594729,106060.0,106040.0,0.188599]
[1737730113708,0.31737729,106060.0,106040.0,0.14145]
[1737730113940,0.67593612,106050.0,106020.0,0.377265]
[1737730114064,0.330065,106040.0,106020.0,0.33011]
[1737730114282,0.42741229,106040.0,106010.0,0.377297]
[1737730114516,0.42741229,106040.0,106010.0,0.188647]
[1737730114517,0.23881729,106030.0,106010.0,0.188647]
[1737730114713,0.53452112,106030.0,106010.0,0.141491]
[1737730114955,0.24854783,106030.0,106020.0,0.141482]
[1737730115340,0.34589512,106030.0,106020.0,0.141482]
[1737730115536,0.43714583,106050.0,106020.0,0.330115]
[1737730115737,0.86454712,106050.0,106030.0,0.330093]
[1737730115942,0.330064,106040.0,106020.0,0.518747]
[1737730116112,0.23880329,106040.0,106020.0,0.518749]
[1737730116315,0.09734729,106040.0,106020.0,0.518749]
[1737730116539,0.23880329,106040.0,106020.0,0.330114]
[1737730116742,0.42741129,106040.0,106020.0,0.330114]
[1737730116918,0.61603029,106040.0,106020.0,0.330125]
[1737730117393,0.61602729,106040.0,106020.0,0.330125]
[1737730117812,0.141472,106030.0,106010.0,0.330132]
[1737730118027,0.23883829,106020.0,106000.0,0.141505]
[1737730118248,0.24854783,106010.0,105970.0,0.1888659]
[1737730118452,0.39007383,105990.0,105970.0,0.5191279]
[1737730118629,0.09734729,105990.0,105980.0,0.141536]
[1737730118888,0.24854783,106010.0,105990.0,0.141514]
[1737730119105,0.09734729,106010.0,106000.0,0.330177]
[1737730119330,0.459576,106040.0,106020.0,0.141482]
[1737730119543,0.23881829,106030.0,106010.0,0.141496]
[1737730119747,0.42744429,106030.0,106010.0,0.330146]
[1737730119959,0.141489,106020.0,106010.0,0.141496]
[1737730120164,0.09734729,106020.0,106010.0,0.141496]
[1737730120370,0.459584,106040.0,106020.0,0.330122]
[1737730120573,0.459584,106040.0,106020.0,0.141482]
[1737730120574,0.09734729,106030.0,106020.0,0.141482]
[1737730120786,0.67599912,106030.0,106010.0,0.330147]
[1737730120992,0.330149,106020.0,106000.0,0.141502]
[1737730121200,0.09734729,106010.0,105990.0,0.377377]
[1737730121411,0.23884429,106010.0,105990.0,0.518886]
[1737730121618,0.141522,105990.0,105980.0,0.14202151]
[1737730121804,0.09734729,105990.0,105980.0,0.14202151]
[1737730122259,0.23886929,105990.0,105980.0,0.00049251]
[1737730122466,0.23886929,105990.0,105980.0,0.14202851]
[1737730122740,0.23886929,105990.0,105980.0,0.00049251]
[1737730122948,0.48741712,105990.0,105980.0,0.00049251]
[1737730123389,0.63741712,105990.0,105980.0,0.00049251]
[1737730123596,0.65741712,105990.0,105980.0,0.00049251]
[1737730123805,0.63741712,105990.0,105980.0,0.00049251]
[1737730124019,0.65741712,105990.0,105980.0,0.00049251]
[1737730124228,0.63741712,105990.0,105980.0,0.00049251]
[1737730124647,0.65741712,105990.0,105980.0,0.00049251]
[1737730125039,0.65741712,105990.0,105930.0,0.188795]
[1737730125040,0.62324241,105990.0,105930.0,0.188795]
[1737730125042,0.0669,105960.0,105910.0,0.08140565]
[1737730125264,0.0669,105960.0,105910.0,0.41186565]
[1737730125265,0.57896083,105930.0,105910.0,0.41186565]
[1737730125478,0.57896083,105930.0,105910.0,0.08140565]
[1737730125479,0.141616,105920.0,105910.0,0.08140565]
[1737730125700,0.09734729,105920.0,105910.0,0.22303465]
[1737730125903,0.411393,105940.0,105920.0,0.330432]
[1737730126126,0.09734729,105930.0,105920.0,0.141616]
[1737730126543,0.43732283,105950.0,105910.0,0.41185865]
[1737730126544,0.141583,105950.0,105930.0,0.330392]
[1737730126757,0.141576,105950.0,105940.0,0.164585]
[1737730126932,0.596585,105960.0,105940.0,0.353358]
[1737730127148,0.69393229,105960.0,105940.0,0.353358]
[1737730127349,0.69393229,105960.0,105930.0,0.18893869]
[1737730127350,0.23892529,105950.0,105930.0,0.18893869]
[1737730127548,0.0775,105960.0,105950.0,0.141576]
[1737730127750,0.39010583,105970.0,105960.0,0.141562]
[1737730128083,0.141549,105970.0,105960.0,0.141562]
[1737730128288,0.0771,105980.0,105970.0,0.141549]
[1737730128436,0.23888329,105980.0,105960.0,0.141562]
[1737730128657,0.42760029,105980.0,105960.0,0.330301]
[1737730128816,0.34589512,105970.0,105940.0,0.377554]
[1737730129025,0.141563,105960.0,105940.0,0.330361]
[1737730129233,0.42766929,105960.0,105940.0,0.519135]
[1737730129465,0.39010683,105970.0,105950.0,0.353333]
[1737730129655,0.67618712,105970.0,105950.0,0.353333]
[1737730129852,0.23890929,105960.0,105940.0,0.51927369]
[1737730130153,0.42766329,105960.0,105950.0,0.141576]
[1737730130357,0.57883883,105970.0,105950.0,0.519096]
[1737730130561,0.48745312,105970.0,105960.0,0.141562]
[1737730130768,0.141562,105960.0,105950.0,0.330332]
[1737730130938,0.09734729,105960.0,105950.0,0.141576]
[1737730131207,0.23890929,105960.0,105940.0,0.51928169]
[1737730131381,0.23890929,105960.0,105940.0,0.14173669]
[1737730131382,0.48747112,105950.0,105940.0,0.14173669]
[1737730131611,0.23891929,105960.0,105950.0,0.141576]
[1737730131820,0.76757883,105970.0,105950.0,0.519101]
[1737730132003,0.61637829,105970.0,105950.0,0.519101]
[1737730132232,0.09734729,105970.0,105960.0,0.141562]
[1737730132468,0.141547,105980.0,105960.0,0.141562]
[1737730132706,0.141562,105960.0,105950.0,0.141576]
[1737730132829,0.42766329,105960.0,105940.0,0.51927069]
[1737730133030,0.42766329,105960.0,105940.0,0.37769169]
[1737730133236,0.09734729,105960.0,105950.0,0.141576]
[1737730133430,0.23890929,105960.0,105950.0,0.141576]
[1737730133745,0.09734729,105960.0,105950.0,0.141576]
[1737730134409,0.23890929,105960.0,105950.0,0.141576]
[1737730134615,0.28610629,105960.0,105940.0,0.00014769]
[1737730134819,0.23892329,105950.0,105940.0,0.00014769]
[1737730135039,0.23892329,105950.0,105940.0,0.14173669]
[1737730135209,0.411732,105960.0,105940.0,0.33051269]
[1737730135410,0.23892329,105950.0,105940.0,0.00014769]
[1737730135974,0.48747112,105950.0,105940.0,0.00014769]
[1737730136212,0.63747112,105950.0,105940.0,0.00014769]
[1737730136629,0.23892329,105950.0,105940.0,0.00014769]
[1737730137043,0.23892329,105950.0,105940.0,0.14173669]
[1737730137407,0.23892329,105950.0,105940.0,0.00014769]
[1737730138022,0.23892329,105950.0,105940.0,0.14173669]
[1737730138426,0.23892329,105950.0,105940.0,0.00014769]
[1737730138828,0.09734729,105950.0,105940.0,0.00014769]
[1737730139028,0.09734729,105950.0,105940.0,0.14173669]
[1737730139250,0.23892329,105950.0,105940.0,0.14173669]
[1737730140305,0.23892329,105950.0,105940.0,0.00014769]
[1737730141143,0.38892329,105950.0,105940.0,0.00014769]
[1737730141378,0.65747112,105950.0,105940.0,0.00014769]
[1737730141600,0.66747112,105950.0,105940.0,0.00014769]
[1737730141810,0.63747112,105950.0,105940.0,0.00014769]
[1737730142023,0.66747112,105950.0,105940.0,0.00014769]
[1737730142236,0.76481841,105950.0,105940.0,0.00014769]
[1737730142436,0.33048,105910.0,105890.0,0.50980039]
[1737730142645,0.42782729,105910.0,105900.0,0.141643]
[1737730142866,0.141643,105900.0,105890.0,0.00014787]
[1737730143081,0.23899029,105900.0,105890.0,0.00014787]
[1737730144598,0.38899029,105900.0,105890.0,0.00014787]
[1737730144816,0.54543758,105900.0,105890.0,0.00014787]
[1737730145039,0.44809029,105900.0,105890.0,0.00014787]
[1737730145276,0.23899029,105900.0,105890.0,0.00014787]
[1737730145486,0.38899029,105900.0,105890.0,0.00014787]
[1737730146358,0.09734729,105900.0,105890.0,0.14180387]
[1737730146992,0.23899029,105900.0,105890.0,0.00014787]
[1737730147219,0.38899029,105900.0,105890.0,0.00014787]
[1737730147645,0.23899029,105900.0,105890.0,0.00014787]
[1737730149581,0.38899029,105900.0,105890.0,0.00014787]
[1737730150002,0.23899029,105900.0,105890.0,0.00014787]
[1737730150210,0.09734729,105900.0,105890.0,0.14180387]
[1737730150454,0.23899029,105900.0,105890.0,0.14194587]
[1737730150659,0.23899029,105900.0,105890.0,0.00028987]
[1737730150837,0.23899029,105900.0,105890.0,0.14194587]
[1737730151060,0.09734729,105900.0,105890.0,0.14194587]
[1737730152709,0.43177192,105900.0,105890.0,0.00028987]
[1737730153359,0.38899029,105900.0,105890.0,0.00028987]
[1737730153779,0.40899029,105900.0,105890.0,0.00028987]
[1737730153957,0.23899029,105900.0,105890.0,0.00028987]
[1737730154405,0.38899029,105900.0,105890.0,0.00028987]
[1737730154580,0.41899029,105900.0,105890.0,0.00028987]
[1737730154781,0.61073758,105900.0,105890.0,0.00028987]
[1737730154983,0.70987758,105900.0,105890.0,0.00028987]
[1737730155165,0.141683,105870.0,105860.0,0.0001419]
[1737730155366,0.23903029,105870.0,105860.0,0.00028971]
[1737730156215,0.38903029,105870.0,105860.0,0.00028971]
[1737730156420,0.40903029,105870.0,105860.0,0.00028971]
[1737730156619,0.38903029,105870.0,105860.0,0.00028971]
[1737730156841,0.141736,105830.0,105820.0,0.0001424]
[1737730157048,0.48763112,105830.0,105820.0,0.0006347]
[1737730157491,0.23908329,105830.0,105820.0,0.0006347]
[1737730158071,0.48763112,105830.0,105820.0,0.0006347]
[1737730158676,0.63763112,105830.0,105820.0,0.0006347]
[1737730158881,0.71383112,105830.0,105820.0,0.0006347]
[1737730159082,0.2197,105820.0,105800.0,0.0001418]
[1737730159295,0.64765812,105810.0,105800.0,0.0001418]
[1737730159464,2.14765812,105810.0,105800.0,0.0001418]
[1737730159669,2.17084574,105810.0,105800.0,0.0001418]
[1737730159894,2.26819303,105810.0,105800.0,0.0001418]
[1737730160091,2.14765812,105810.0,105800.0,0.0001418]
[1737730160291,0.65765812,105810.0,105800.0,0.0001418]
[1737730160518,0.64765812,105810.0,105800.0,0.0001418]
[1737730160672,0.63765812,105810.0,105800.0,0.0001418]
[1737730160875,0.38911029,105810.0,105800.0,0.0001418]
[1737730161074,0.23911029,105810.0,105800.0,0.0001418]
[1737730161277,0.23911029,105810.0,105790.0,0.330982]
[1737730161278,0.141776,105800.0,105790.0,0.00010873]
[1737730161517,0.23912329,105800.0,105790.0,0.00010873]
[1737730161924,0.74501841,105800.0,105790.0,0.00010873]
[1737730162157,0.85229044,105800.0,105790.0,0.00010873]
[1737730162266,0.82771841,105800.0,105790.0,0.00010873]
[1737730162478,0.8663754,105800.0,105790.0,0.00010873]
[1737730162676,0.72037112,105800.0,105790.0,0.00010873]
[1737730162900,0.74037112,105800.0,105790.0,0.00010873]
[1737730163141,0.72037112,105800.0,105790.0,0.00010873]
[1737730163553,0.47182329,105800.0,105790.0,0.00010873]
[1737730163752,0.23912329,105800.0,105790.0,0.00010873]
[1737730163955,0.09734729,105800.0,105790.0,0.00010873]
[1737730164159,0.48767112,105800.0,105790.0,0.00010873]
[1737730164358,0.63767112,105800.0,105790.0,0.00010873]
[1737730164581,0.73501841,105800.0,105790.0,0.00010873]
[1737730164784,0.75501841,105800.0,105790.0,0.00010873]
[1737730164985,0.76501841,105800.0,105790.0,0.00010873]
[1737730165363,0.75501841,105800.0,105790.0,0.00010873]
[1737730165581,0.65767112,105800.0,105790.0,0.00010873]
[1737730166200,0.66767112,105800.0,105790.0,0.00010873]
[1737730166430,0.63767112,105800.0,105790.0,0.00010873]
[1737730166638,0.66767112,105800.0,105790.0,0.00010873]
[1737730167142,0.68617112,105800.0,105790.0,0.00010873]
[1737730167276,0.24969,105790.0,105780.0,0.000202]
[1737730167500,0.34703729,105790.0,105780.0,0.000202]
[1737730167702,0.46703729,105790.0,105780.0,0.000202]
[1737730168109,0.46703729,105790.0,105760.0,0.00674351]
[1737730168110,0.01,105770.0,105760.0,0.00674351]
[1737730168426,0.64820329,105770.0,105760.0,0.00674351]
[1737730168635,0.63820329,105770.0,105760.0,0.00674351]
[1737730169427,1.80183,105760.0,105750.0,0.0001417]
[1737730169631,0.40917729,105760.0,105750.0,0.0001417]
[1737730170028,0.41917729,105760.0,105750.0,0.0001417]
[1737730170228,0.40917729,105760.0,105750.0,0.0001417]
[1737730170576,0.41917729,105760.0,105750.0,0.0001417]
[1737730170767,0.40917729,105760.0,105750.0,0.0001417]
[1737730171581,0.38917729,105760.0,105750.0,0.0001417]
[1737730171792,0.40917729,105760.0,105750.0,0.0001417]
[1737730172000,0.38917729,105760.0,105750.0,0.0001417]
[1737730172196,0.4076283,105760.0,105750.0,0.0001417]
[1737730172413,0.4276283,105760.0,105750.0,0.0001417]
[1737730172613,0.4076283,105760.0,105750.0,0.0001417]
[1737730173257,0.4076283,105760.0,105740.0,0.330984]
[1737730173258,0.23917729,105760.0,105740.0,0.330984]
[1737730173585,0.23919029,105750.0,105740.0,0.141852]
[1737730173789,0.09734729,105750.0,105740.0,0.141852]
[1737730174431,0.09734729,105750.0,105740.0,0.164852]
[1737730174636,0.00049117,105770.0,105760.0,0.14183]
[1737730174839,0.09783846,105770.0,105760.0,0.14183]
[1737730175866,0.14183,105760.0,105750.0,0.189109]
[1737730176109,0.14183,105760.0,105740.0,0.141852]
[1737730176110,0.42830829,105760.0,105740.0,0.141852]
[1737730176352,0.09734729,105750.0,105740.0,0.18914]
[1737730176565,0.520079,105760.0,105750.0,0.141443]
[1737730176566,0.09734729,105760.0,105750.0,0.141443]
[1737730176770,0.09734729,105760.0,105750.0,0.164443]
[1737730177758,0.00049117,105770.0,105760.0,0.16483]
[1737730178179,0.09783846,105770.0,105760.0,0.16483]
[1737730178416,0.00049117,105770.0,105760.0,1.25810596]
[1737730178619,0.00049117,105770.0,105760.0,1.3545077]
[1737730179270,0.09072,105810.0,105800.0,0.141776]
[1737730179500,0.18806729,105810.0,105800.0,0.14192365]
[1737730180164,0.18806729,105810.0,105800.0,0.16492365]
[1737730180393,0.18806729,105810.0,105800.0,0.14192365]
[1737730180604,0.18806729,105810.0,105790.0,0.567117]
[1737730180605,0.23577402,105810.0,105740.0,0.1243]
[1737730180821,0.24854783,105780.0,105760.0,0.18925291]
[1737730181035,0.09734729,105770.0,105760.0,0.00014691]
[1737730181257,0.23916429,105770.0,105760.0,0.00014691]
[1737730182316,0.38916429,105770.0,105760.0,0.00014691]
[1737730182733,0.58641158,105770.0,105760.0,0.00014691]
[1737730182940,0.46906429,105770.0,105760.0,0.00014691]
[1737730183968,0.38916429,105770.0,105760.0,0.00014691]
[1737730184168,0.38916429,105770.0,105760.0,0.14197691]
[1737730184377,0.02488,105800.0,105760.0,0.02314691]
[1737730184378,0.24854783,105800.0,105760.0,0.02314691]
[1737730184582,0.23913729,105790.0,105780.0,0.189065]
[1737730184787,0.09734729,105790.0,105760.0,0.00014691]
[1737730184994,0.141817,105770.0,105760.0,0.00014691]
[1737730185231,0.23916429,105770.0,105760.0,0.00014691]
[1737730185455,0.23916429,105770.0,105760.0,0.14197691]
[1737730185928,0.23916429,105770.0,105760.0,0.00014691]
[1737730186352,0.23916429,105770.0,105760.0,0.14197691]
[1737730186353,0.23946291,105770.0,105760.0,0.14197691]
[1737730186564,0.23946291,105770.0,105760.0,0.00014691]
[1737730188172,0.38946291,105770.0,105760.0,0.00014691]
[1737730188599,0.09764591,105770.0,105760.0,0.14197691]
[1737730188844,0.00029862,105770.0,105760.0,0.16497691]
[1737730189192,0.00029862,105770.0,105760.0,0.39757691]
[1737730189721,0.00029862,105770.0,105760.0,0.4949242]
[1737730189928,0.00029862,105770.0,105760.0,0.39757691]
[1737730190913,0.00029862,105770.0,105760.0,0.4949242]
[1737730191518,0.00029862,105770.0,105760.0,0.39757691]
[1737730191731,0.00029862,105770.0,105760.0,0.4949242]
[1737730192931,0.00029862,105770.0,105760.0,0.39757691]
[1737730194327,0.00029862,105770.0,105760.0,0.24757691]
[1737730195141,0.00029862,105770.0,105760.0,0.39757691]
[1737730196133,0.00029862,105770.0,105760.0,0.14197691]
[1737730196679,0.00029862,105770.0,105760.0,0.16497691]
[1737730196876,0.378117,105790.0,105760.0,0.16497691]
[1737730197103,0.09734729,105780.0,105770.0,0.378165]
[1737730197662,0.141817,105770.0,105760.0,0.00028901]
[1737730197877,0.23916429,105770.0,105760.0,0.14211901]
[1737730198081,0.141803,105780.0,105770.0,0.189084]
[1737730198285,0.23915029,105780.0,105770.0,0.189084]
[1737730198884,0.23915029,105780.0,105760.0,0.33121401]
[1737730199099,0.23916429,105770.0,105760.0,0.00028901]
[1737730199304,0.09734729,105770.0,105760.0,0.14211901]
[1737730200389,0.38916429,105770.0,105760.0,0.00028901]
[1737730200852,0.09734729,105770.0,105760.0,0.14211901]
[1737730201312,0.41173342,105800.0,105780.0,0.330865]
[1737730201517,0.23913729,105790.0,105780.0,0.189068]
[1737730201723,0.57819529,105790.0,105770.0,0.330881]
[1737730201932,0.57819529,105790.0,105770.0,0.378155]
[1737730202142,0.141803,105780.0,105760.0,0.33120801]
[1737730202367,0.09734729,105770.0,105760.0,0.33120801]
[1737730202571,0.09734729,105770.0,105760.0,0.35420801]
[1737730202803,0.14207542,105800.0,105780.0,0.378142]
[1737730203010,0.09734729,105790.0,105780.0,0.378142]
[1737730203215,0.09698095,105790.0,105780.0,0.378142]
[1737730204253,0.33111942,105800.0,105790.0,0.14179]
[1737730204254,0.00029842,105800.0,105790.0,0.14179]
[1737730204452,0.23942171,105800.0,105780.0,0.519925]
[1737730204658,0.23913729,105790.0,105780.0,0.378124]
[1737730204904,0.00029842,105800.0,105790.0,0.14179]
[1737730205129,0.00029842,105800.0,105790.0,0.16479]
[1737730205761,0.23942171,105800.0,105790.0,0.14179]
[1737730206199,0.09764571,105800.0,105790.0,0.14179]
[1737730206625,0.09764571,105800.0,105790.0,0.16479]
[1737730207261,0.00029842,105800.0,105790.0,0.16479]
[1737730208331,0.00029842,105800.0,105790.0,0.16573523]
[1737730209035,0.00029842,105800.0,105790.0,0.29293523]
[1737730209274,0.00029842,105800.0,105790.0,0.29199]
[1737730209679,0.00029842,105800.0,105790.0,0.38933729]
[1737730210094,0.00029842,105800.0,105790.0,0.53933729]
[1737730210918,4.2e-07,105800.0,105790.0,0.54933729]
[1737730211128,0.1452455,105870.0,105790.0,0.54933729]
[1737730211129,0.00029821,105870.0,105860.0,0.141696]
[1737730211359,0.141703,105860.0,105840.0,0.141712]
[1737730211554,0.23905629,105850.0,105830.0,0.353695]
[1737730211778,0.47526229,105850.0,105830.0,0.188971]
[1737730211992,0.141723,105840.0,105820.0,0.188986]
[1737730212198,0.09734729,105840.0,105830.0,0.188973]
[1737730212407,0.09749466,105840.0,105830.0,0.377954]
[1737730212628,0.00014737,105840.0,105830.0,0.377954]
[1737730212832,0.09749466,105840.0,105820.0,1.19690441]
[1737730213053,0.09734729,105830.0,105820.0,0.141746]
[1737730214527,0.25160773,105830.0,105820.0,0.141746]
[1737730214733,0.58232873,105830.0,105810.0,0.330756]
[1737730214937,0.58232873,105830.0,105820.0,0.14175]
[1737730214938,0.09734729,105830.0,105820.0,0.14175]
[1737730216312,0.00014737,105840.0,105830.0,0.141736]
[1737730217212,0.00014737,105840.0,105830.0,0.38958329]
[1737730217418,0.00029821,105870.0,105860.0,0.141696]
[1737730217631,0.00029821,105870.0,105860.0,0.98457089]
[1737730217849,0.00029821,105870.0,105860.0,0.97042641]
[1737730218077,0.0976455,105870.0,105860.0,0.151496]
[1737730219152,0.00029821,105870.0,105860.0,0.151496]
[1737730219379,0.0976455,105870.0,105860.0,0.151496]
[1737730219794,0.00029821,105870.0,105860.0,0.151496]
[1737730220210,0.00029821,105870.0,105860.0,0.994371]
[1737730220448,0.00029821,105870.0,105860.0,0.99342641]
[1737730221250,6.2e-07,105880.0,105870.0,0.164683]
[1737730221459,0.00049331,105880.0,105870.0,0.27297447]
[1737730221658,0.00049331,105880.0,105870.0,0.26203029]
[1737730221867,0.00049331,105880.0,105870.0,0.27203029]
[1737730222080,0.00049331,105880.0,105870.0,0.26203029]
[1737730222431,3.1e-07,105880.0,105870.0,0.27203029]
[1737730222640,0.00029842,105910.0,105900.0,0.141643]
[1737730222836,0.00044622,105910.0,105900.0,1.20476469]